bitfinex/quotes_BTCUSD_20251113
["timestamp","ask_amount","ask_price","bid_price","bid_amount"]
[1763031687708,0.42884346,103050.0,103040.0,0.28346937]
[1763031687906,0.42884346,103050.0,103040.0,0.09037]
[1763031688133,0.22012883,103050.0,103040.0,0.24859937]
[1763031688357,0.44423346,103050.0,103040.0,0.24859937]
[1763031688559,0.44423346,103050.0,103040.0,0.29299937]
[1763031688763,0.44423346,103050.0,103040.0,0.30886937]
[1763031688912,0.65294809,103050.0,103040.0,0.30886937]
[1763031689115,0.45886755,103050.0,103040.0,0.30886937]
[1763031689318,0.65294809,103050.0,103040.0,0.30886937]
[1763031689726,0.42884346,103050.0,103040.0,0.30886937]
[1763031690332,0.42884346,103050.0,103040.0,0.11477]
[1763031690698,0.65294809,103050.0,103040.0,0.09037]
[1763031690906,0.65294809,103050.0,103040.0,0.09294]
[1763031691102,0.65294809,103050.0,103040.0,0.07037]
[1763031691686,0.65294809,103050.0,103040.0,0.30703937]
[1763031691888,0.42884346,103050.0,103040.0,0.30703937]
[1763031692102,0.65294809,103050.0,103040.0,0.11294]
[1763031692506,0.23476292,103050.0,103040.0,0.28703937]
[1763031692708,0.42884346,103050.0,103040.0,0.30703937]
[1763031693072,0.42884346,103050.0,103040.0,0.11294]
[1763031693361,0.42884346,103050.0,103040.0,0.09294]
[1763031693576,0.70914714,103050.0,103040.0,0.0545]
[1763031693941,0.70914714,103050.0,103040.0,0.0745]
[1763031694138,0.93325177,103050.0,103040.0,0.04316]
[1763031694974,0.93325177,103050.0,103040.0,0.04216]
[1763031695326,0.98145616,103050.0,103040.0,0.04216]
[1763031695550,0.98145616,103050.0,103020.0,0.01132]
[1763031695551,0.19411821,103030.0,103020.0,0.01132]
[1763031695758,0.69047747,103030.0,103010.0,0.2480459]
[1763031695999,0.70861023,103030.0,103020.0,0.06216]
[1763031696200,0.68579023,103030.0,103020.0,0.25629706]
[1763031696432,0.44355284,103030.0,103020.0,0.26812706]
[1763031696853,0.42829284,103030.0,103020.0,0.30617706]
[1763031697058,0.20418821,103030.0,103020.0,0.28360706]
[1763031697272,0.50281705,103030.0,103020.0,0.28360706]
[1763031697681,0.51807705,103030.0,103020.0,0.05499]
[1763031697891,0.51807705,103030.0,103020.0,0.07499]
[1763031698093,0.55903361,103030.0,103020.0,0.05499]
[1763031698549,0.53621154,103030.0,103020.0,0.07499]
[1763031698752,0.53621154,103030.0,103020.0,0.05499]
[1763031699159,0.53621154,103030.0,103020.0,0.07499]
[1763031699374,0.51907705,103030.0,103020.0,0.07499]
[1763031699575,0.51907705,103030.0,103020.0,0.07399]
[1763031700605,0.51907705,103030.0,103020.0,0.26812706]
[1763031701633,0.30969884,103030.0,103020.0,0.30617706]
[1763031701845,0.001,103030.0,103020.0,0.30617706]
[1763031702679,0.001,103030.0,103020.0,0.6048059]
[1763031702890,0.001,103030.0,103020.0,0.30617706]
[1763031703830,0.001,103030.0,103020.0,0.5848059]
[1763031704038,0.001,103030.0,103020.0,0.6048059]
[1763031707201,0.001,103030.0,103020.0,0.35900024]
[1763031707427,0.001,103030.0,103020.0,1.34746231]
[1763031707644,0.001,103030.0,103020.0,1.37658859]
[1763031708373,0.00024428,103040.0,103030.0,0.25753695]
[1763031708570,0.00024428,103040.0,103030.0,0.60604579]
[1763031708745,0.00024428,103040.0,103030.0,0.92904579]
[1763031709498,0.00024428,103040.0,103030.0,0.95945023]
[1763031710567,0.00024428,103040.0,103030.0,0.66082139]
[1763031710767,0.00024428,103040.0,103030.0,0.95945023]
[1763031710973,0.00024428,103040.0,103030.0,0.93004579]
[1763031714539,0.00024428,103040.0,103030.0,0.96421378]
[1763031714786,0.00024428,103040.0,103030.0,0.99361822]
[1763031715079,0.00024428,103040.0,103030.0,1.00388822]
[1763031715279,0.00024428,103040.0,103030.0,1.30251706]
[1763031715455,0.00024428,103040.0,103030.0,1.00388822]
[1763031715866,0.00024428,103040.0,103030.0,1.30251706]
[1763031716063,0.00024428,103040.0,103030.0,1.00388822]
[1763031718069,0.00024428,103040.0,103030.0,1.02315342]
[1763031721047,0.00024428,103040.0,103030.0,1.32178226]
[1763031721781,0.00024428,103040.0,103030.0,0.72452458]
[1763031722000,0.00024428,103040.0,103030.0,1.30178226]
[1763031722218,0.00024428,103040.0,103030.0,1.32178226]
[1763031722438,0.00024428,103040.0,103030.0,0.73452457]
[1763031722656,1e-08,103040.0,103030.0,1.33178225]
[1763031722875,9.978e-05,103050.0,103040.0,0.6006718]
[1763031723151,0.0002,103060.0,103050.0,0.51708054]
[1763031723338,0.0002,103060.0,103050.0,0.58938054]
[1763031723548,0.0002,103060.0,103050.0,1.29841504]
[1763031723978,0.0002,103070.0,103060.0,1.13431939]
[1763031724184,0.0002,103070.0,103060.0,1.26290738]
[1763031724432,0.0002,103070.0,103060.0,1.22873939]
[1763031725095,0.0002,103070.0,103060.0,0.93011055]
[1763031725756,0.0002,103070.0,103060.0,0.93111055]
[1763031726685,0.0002,103070.0,103060.0,1.22973939]
[1763031730280,0.0002,103070.0,103060.0,0.63378045]
[1763031730436,0.0002,103070.0,103060.0,0.97452929]
[1763031731450,0.0002,103070.0,103060.0,0.67590045]
[1763031731661,0.0002,103070.0,103060.0,0.97452929]
[1763031731895,0.00093259,103070.0,103060.0,0.97452929]
[1763031735723,0.00093259,103070.0,103060.0,1.27315813]
[1763031736321,0.00093259,103070.0,103060.0,0.67978275]
[1763031736528,0.00093259,103070.0,103060.0,1.27704043]
[1763031739223,0.00093259,103070.0,103060.0,1.31120842]
[1763031739368,0.00093259,103070.0,103060.0,1.34061286]
[1763031740183,0.00093259,103070.0,103060.0,0.69395074]
[1763031740395,0.00093259,103070.0,103060.0,0.97841159]
[1763031741864,0.00093259,103070.0,103060.0,0.67978275]
[1763031742071,0.00093259,103070.0,103060.0,0.67590045]
[1763031743309,0.00093259,103070.0,103060.0,0.63248171]
[1763031743758,0.19497547,103070.0,103060.0,0.30948171]
[1763031743961,0.00093259,103070.0,103060.0,0.30948171]
[1763031745953,0.00093259,103070.0,103060.0,0.90673939]
[1763031746323,0.00093259,103070.0,103060.0,0.65152929]
[1763031747325,0.00093259,103070.0,103060.0,0.95015813]
[1763031747505,0.00093259,103070.0,103060.0,0.97452929]
[1763031747711,0.00093259,103070.0,103060.0,0.65590045]
[1763031747915,0.00093259,103070.0,103060.0,0.67590045]
[1763031748287,0.00093259,103070.0,103060.0,0.97452929]
[1763031749943,0.02931723,103100.0,103080.0,0.02639]
[1763031750148,0.01849984,103100.0,103090.0,1.24745165]
[1763031750366,0.00033974,103100.0,103090.0,0.68939912]
[1763031750767,0.00033974,103100.0,103090.0,1.0065278]
[1763031751381,0.00033974,103100.0,103090.0,0.9865278]
[1763031751583,0.00033974,103100.0,103090.0,1.0065278]
[1763031751817,0.00033974,103100.0,103090.0,0.70789896]
[1763031752023,0.00033974,103100.0,103090.0,1.0065278]
[1763031752435,0.00033974,103100.0,103090.0,0.98802796]
[1763031752747,0.00033974,103100.0,103090.0,0.98902796]
[1763031753508,0.00033974,103100.0,103090.0,1.03723235]
[1763031754710,0.00033974,103100.0,103090.0,1.33586119]
[1763031755528,0.00107201,103100.0,103090.0,1.33586119]
[1763031755919,0.00107201,103100.0,103090.0,1.31586119]
[1763031756170,0.00107201,103100.0,103090.0,1.33586119]
[1763031758990,0.00107201,103100.0,103090.0,2.07976803]
[1763031763357,0.00107201,103100.0,103090.0,2.08364887]
[1763031764681,0.0002,103110.0,103100.0,0.58040516]
[1763031764876,0.0002,103110.0,103100.0,1.97366968]
[1763031765983,0.0002,103110.0,103100.0,1.30308742]
[1763031766990,0.0002,103110.0,103100.0,1.97366968]
[1763031767507,0.0002,103110.0,103100.0,1.28308742]
[1763031767692,0.0002,103110.0,103100.0,1.30308742]
[1763031769222,0.0002,103110.0,103100.0,0.56908642]
[1763031769428,0.2051676,103110.0,103100.0,0.83481384]
[1763031769633,0.0112,103110.0,103100.0,0.85481384]
[1763031770147,0.0002,103110.0,103100.0,0.85481384]
[1763031770344,0.19441163,103110.0,103100.0,0.85481384]
[1763031770573,0.00044403,103110.0,103100.0,0.85481384]
[1763031770759,0.00044403,103110.0,103100.0,0.83481384]
[1763031770962,0.00044403,103110.0,103100.0,0.85481384]
[1763031771161,0.00044403,103110.0,103100.0,0.63128642]
[1763031771361,0.00044403,103110.0,103100.0,1.07834126]
[1763031776067,0.20416333,103120.0,103110.0,0.2263376]
[1763031776586,0.20416333,103120.0,103110.0,0.02769]
[1763031776796,0.20416333,103120.0,103110.0,0.04769]
[1763031777016,0.20416333,103120.0,103110.0,0.2416576]
[1763031777229,0.20516333,103120.0,103110.0,0.2216576]
[1763031777436,0.20516333,103120.0,103110.0,0.2416576]
[1763031777576,0.01121403,103120.0,103110.0,0.2216576]
[1763031777919,0.20516282,103120.0,103110.0,0.2416576]
[1763031778214,0.01121403,103120.0,103110.0,0.2416576]
[1763031778419,0.01121403,103120.0,103110.0,0.2460676]
[1763031778620,0.01121403,103120.0,103110.0,0.2660676]
[1763031779003,0.01121403,103120.0,103110.0,0.48959502]
[1763031780017,0.00114403,103120.0,103110.0,0.48959502]
[1763031780440,0.00114403,103120.0,103100.0,0.01237]
[1763031780441,0.51657463,103120.0,103100.0,0.01237]
[1763031780640,0.64102244,103110.0,103100.0,0.03237]
[1763031780987,0.45717502,103110.0,103100.0,0.24851642]
[1763031781187,0.45717502,103110.0,103100.0,0.05453]
[1763031781392,0.19398642,103100.0,103090.0,0.05685]
[1763031781594,0.73899565,103100.0,103080.0,0.03555]
[1763031781805,0.54500923,103100.0,103090.0,0.25616523]
[1763031782007,0.49200823,103100.0,103090.0,0.25616523]
[1763031782231,0.49200823,103100.0,103090.0,0.04216]
[1763031782409,0.51546823,103100.0,103090.0,0.04216]
[1763031782582,0.73899565,103100.0,103090.0,0.04216]
[1763031782789,0.73899565,103100.0,103080.0,0.20523277]
[1763031782790,0.19400523,103090.0,103080.0,0.02013974]
[1763031783109,0.69174007,103090.0,103080.0,0.04229974]
[1763031783326,0.69174007,103090.0,103080.0,0.23632379]
[1763031783497,0.69174007,103090.0,103080.0,0.25632379]
[1763031783699,0.47427484,103090.0,103080.0,0.25632379]
[1763031784102,0.66828007,103090.0,103080.0,0.25632379]
[1763031784889,0.47427484,103090.0,103080.0,0.25632379]
[1763031785089,0.66828007,103090.0,103080.0,0.25632379]
[1763031785471,0.47427484,103090.0,103080.0,0.25632379]
[1763031785694,0.23408653,103110.0,103090.0,0.19400523]
[1763031785909,0.20497012,103110.0,103100.0,0.23614642]
[1763031786121,0.67186991,103110.0,103100.0,0.04216]
[1763031786316,0.71272991,103110.0,103100.0,0.04216]
[1763031787177,0.71472991,103110.0,103100.0,0.25614642]
[1763031787676,0.47650484,103110.0,103100.0,0.25614642]
[1763031787877,0.67147244,103110.0,103100.0,0.04216]
[1763031788076,0.69588244,103110.0,103100.0,0.04216]
[1763031788336,0.69488244,103110.0,103100.0,0.04216]
[1763031788741,0.69688244,103110.0,103100.0,0.06216]
[1763031788905,0.69688244,103110.0,103100.0,0.04216]
[1763031789105,0.69688244,103110.0,103100.0,0.25614642]
[1763031789301,0.79328192,103110.0,103100.0,0.23614642]
[1763031789515,0.79328192,103110.0,103100.0,0.25614642]
[1763031789909,0.69688244,103110.0,103100.0,0.25614642]
[1763031790187,0.69688244,103110.0,103100.0,0.23614642]
[1763031791099,1.24340986,103110.0,103090.0,0.19400445]
[1763031791343,0.19400523,103090.0,103080.0,0.00013974]
[1763031791570,0.19400523,103090.0,103080.0,0.04233974]
[1763031791571,1.20403749,103090.0,103080.0,0.04233974]
[1763031791784,1.35396904,103090.0,103080.0,0.04233974]
[1763031792232,1.3720906,103090.0,103080.0,0.04233974]
[1763031792456,1.37208116,103090.0,103080.0,0.04233974]
[1763031793294,1.35396904,103090.0,103080.0,0.04233974]
[1763031793717,1.35496904,103090.0,103080.0,0.04233974]
[1763031793922,1.35596904,103090.0,103080.0,0.04233974]
[1763031794097,1.35596904,103090.0,103080.0,0.00013974]
[1763031794098,2.0265513,103090.0,103080.0,0.00013974]
[1763031794279,2.0446505,103090.0,103080.0,0.00013974]
[1763031794483,0.70348598,103090.0,103080.0,0.00013974]
[1763031794684,1.37406824,103090.0,103080.0,0.00013974]
[1763031795165,1.37406824,103090.0,103080.0,0.02013974]
[1763031795570,1.35596904,103090.0,103080.0,0.00013974]
[1763031796057,1.35596904,103090.0,103080.0,0.02013974]
[1763031796215,1.3740621,103090.0,103080.0,0.02013974]
[1763031796422,1.3740621,103090.0,103080.0,0.00013974]
[1763031796755,1.3740621,103090.0,103080.0,0.02013974]
[1763031796960,0.95774677,103090.0,103080.0,0.02013974]
[1763031797785,0.95774677,103090.0,103080.0,0.00013974]
[1763031798158,0.95774677,103090.0,103080.0,0.02013974]
[1763031798325,0.95774677,103090.0,103080.0,0.00013974]
[1763031799011,1.2120137,103090.0,103080.0,0.00013974]
[1763031799817,1.2110137,103090.0,103080.0,0.00013974]
[1763031800019,1.21001159,103090.0,103080.0,0.00013974]
[1763031800208,1.21201159,103090.0,103080.0,0.00013974]
[1763031800409,1.21401159,103090.0,103080.0,0.00013974]
[1763031802165,0.95974466,103090.0,103080.0,0.00013974]
[1763031802539,1.21401159,103090.0,103080.0,0.00013974]
[1763031803135,0.95974466,103090.0,103080.0,0.00013974]
[1763031803342,0.86334518,103090.0,103080.0,0.00013974]
[1763031803830,0.86334518,103090.0,103080.0,0.02013974]
[1763031804733,0.86334518,103090.0,103080.0,0.00013974]
[1763031804734,0.51593518,103090.0,103080.0,0.00013974]
[1763031804933,0.48681311,103090.0,103080.0,0.20543379]
[1763031805079,0.21609618,103090.0,103080.0,0.26512379]
[1763031806045,0.02209095,103090.0,103080.0,0.26512379]
[1763031806423,0.21609618,103090.0,103080.0,0.26512379]
[1763031806567,0.02209095,103090.0,103080.0,0.26512379]
[1763031806771,0.004,103090.0,103080.0,0.26512379]
[1763031808164,0.002,103090.0,103080.0,0.26512379]
[1763031808609,0.001,103090.0,103080.0,0.26512379]
[1763031808762,0.002,103090.0,103080.0,0.26512379]
[1763031811093,0.002,103090.0,103080.0,0.24512379]
[1763031811551,0.002,103090.0,103080.0,0.26512379]
[1763031811755,0.27288693,103090.0,103080.0,0.22155379]
[1763031811972,0.01862,103090.0,103080.0,0.22155379]
[1763031812211,0.01862,103090.0,103080.0,0.24155379]
[1763031812477,0.002,103090.0,103080.0,0.28725379]
[1763031812690,0.002,103090.0,103080.0,0.30725379]
[1763031813134,0.19600523,103090.0,103080.0,0.28375379]
[1763031814030,0.002,103090.0,103080.0,0.28375379]
[1763031814626,0.002,103090.0,103080.0,0.28725379]
[1763031814895,0.002,103090.0,103080.0,0.30725379]
[1763031815094,0.49153216,103090.0,103080.0,0.25636379]
[1763031816058,0.04326,103090.0,103080.0,0.25636379]
[1763031816256,0.002,103090.0,103080.0,0.30696379]
[1763031817626,0.28546962,103090.0,103080.0,0.25636379]
[1763031818053,0.28546962,103090.0,103080.0,0.06233974]
[1763031818276,0.28546962,103090.0,103080.0,0.04233974]
[1763031818744,0.53973655,103090.0,103080.0,0.25636379]
[1763031818961,0.58376251,103090.0,103080.0,0.06233974]
[1763031819393,0.58376251,103090.0,103080.0,0.25636379]
[1763031821612,0.58376251,103090.0,103080.0,0.25632379]
[1763031821976,0.58376251,103090.0,103080.0,0.23632379]
[1763031822597,0.58376251,103090.0,103080.0,0.00013974]
[1763031822823,0.58376251,103090.0,103080.0,0.04229974]
[1763031823474,0.58376251,103090.0,103080.0,0.06229974]
[1763031824945,0.58376251,103090.0,103080.0,0.04229974]
[1763031825589,0.58376251,103090.0,103080.0,0.06229974]
[1763031825785,0.58376251,103090.0,103080.0,0.23632379]
[1763031826023,0.58376251,103090.0,103080.0,0.25632379]
[1763031826913,0.58376251,103090.0,103080.0,0.06229974]
[1763031827981,0.58376251,103090.0,103080.0,0.04229974]
[1763031828428,0.58376251,103090.0,103080.0,0.06229974]
[1763031829037,0.58376251,103090.0,103080.0,0.04229974]
[1763031829439,0.58376251,103090.0,103080.0,0.06229974]
[1763031829858,0.58376251,103090.0,103080.0,0.02013974]
[1763031830025,0.90676251,103090.0,103080.0,0.04229974]
[1763031830627,0.90676251,103090.0,103080.0,0.06229974]
[1763031830872,0.90676251,103090.0,103080.0,0.04229974]
[1763031831072,0.90676251,103090.0,103080.0,0.06229974]
[1763031831652,0.90676251,103090.0,103080.0,0.04229974]
[1763031831854,0.90676251,103090.0,103080.0,0.06229974]
[1763031832054,0.90676251,103090.0,103080.0,0.04229974]
[1763031833484,0.90676251,103090.0,103080.0,0.06229974]
[1763031833684,0.90676251,103090.0,103080.0,0.04229974]
[1763031833891,0.90676251,103090.0,103080.0,0.06229974]
[1763031834914,0.90676251,103090.0,103080.0,0.04229974]
[1763031835250,1.00316199,103090.0,103080.0,0.04229974]
[1763031835784,1.00316199,103090.0,103080.0,0.06229974]
[1763031838219,1.31962068,103090.0,103080.0,0.04225974]
[1763031840363,1.31962068,103090.0,103080.0,0.00013974]
[1763031840578,1.31962068,103090.0,103080.0,0.02013974]
[1763031840579,0.92492831,103090.0,103080.0,0.02013974]
[1763031840749,0.92492831,103090.0,103080.0,0.00013974]
[1763031841141,0.92492831,103090.0,103080.0,0.21416379]
[1763031841530,0.92492831,103090.0,103080.0,0.02013974]
[1763031841729,0.92492831,103090.0,103080.0,0.19416379]
[1763031841926,0.92492831,103090.0,103080.0,0.24645379]
[1763031841927,0.37320439,103090.0,103080.0,0.24645379]
[1763031842170,0.51900523,103090.0,103080.0,0.26645379]
[1763031842387,0.002,103090.0,103080.0,0.24645379]
[1763031842598,0.002,103090.0,103080.0,0.26645379]
[1763031842815,0.002,103090.0,103080.0,0.24645379]
[1763031843067,0.002,103090.0,103080.0,0.26645379]
[1763031844688,0.002,103090.0,103080.0,0.24645379]
[1763031844909,0.002,103090.0,103080.0,0.59415112]
[1763031846999,0.002,103090.0,103080.0,0.93586275]
[1763031847211,0.002,103090.0,103080.0,0.30861379]
[1763031848094,0.002,103090.0,103080.0,0.26645379]
[1763031848331,0.001,103090.0,103080.0,0.30861379]
[1763031848777,0.001,103090.0,103080.0,0.31061379]
[1763031848975,0.50234995,103100.0,103090.0,0.19400523]
[1763031849194,0.54283995,103100.0,103090.0,0.21400523]
[1763031849393,0.54283995,103100.0,103090.0,0.19400523]
[1763031849600,0.54283995,103100.0,103090.0,0.04216]
[1763031850071,0.54283995,103100.0,103090.0,0.06316]
[1763031850276,0.54283995,103100.0,103090.0,0.04316]
[1763031850493,0.54283995,103100.0,103090.0,0.23816523]
[1763031850692,0.54283995,103100.0,103090.0,0.25716523]
[1763031850893,0.54283995,103100.0,103090.0,0.23716523]
[1763031851094,0.54283995,103100.0,103090.0,0.04316]
[1763031851365,0.54283995,103100.0,103090.0,0.04216]
[1763031851776,0.51897931,103100.0,103090.0,0.25616523]
[1763031851981,0.54283931,103100.0,103090.0,0.04216]
[1763031852182,0.54283931,103100.0,103090.0,0.23616523]
[1763031852812,0.54283931,103100.0,103090.0,0.04216]
[1763031853215,0.8411322,103100.0,103090.0,0.25616523]
[1763031853335,0.8411322,103100.0,103090.0,0.21400523]
[1763031853536,0.8411322,103100.0,103090.0,0.06216]
[1763031853766,0.8411322,103100.0,103090.0,0.04216]
[1763031854756,0.8411322,103100.0,103090.0,0.06216]
[1763031854934,0.8411322,103100.0,103090.0,0.04216]
[1763031855342,0.8411322,103100.0,103090.0,0.25616523]
[1763031855742,0.8411322,103100.0,103090.0,0.23616523]
[1763031855948,0.54283931,103100.0,103090.0,0.25616523]
[1763031856358,0.24454642,103100.0,103090.0,0.25616523]
[1763031856575,0.54283931,103100.0,103090.0,0.25616523]
[1763031856784,0.54283931,103100.0,103090.0,0.23616523]
[1763031857304,0.54283931,103100.0,103090.0,0.25616523]
[1763031857749,0.54283931,103100.0,103090.0,0.04216]
[1763031858327,0.8411322,103100.0,103090.0,0.04216]
[1763031858727,0.8411322,103100.0,103090.0,0.06216]
[1763031859416,0.24454642,103100.0,103090.0,0.23616523]
[1763031859618,0.88933659,103100.0,103090.0,0.04216]
[1763031860021,0.88933659,103100.0,103090.0,0.06216]
[1763031861042,0.88933659,103100.0,103090.0,0.04216]
[1763031861260,0.88933659,103100.0,103090.0,0.06216]
[1763031861580,0.88933659,103100.0,103090.0,0.23616523]
[1763031861757,0.5910437,103100.0,103090.0,0.23616523]
[1763031862160,0.5910437,103100.0,103090.0,0.25616523]
[1763031863369,0.09876439,103100.0,103090.0,0.25616523]
[1763031865169,0.29275081,103100.0,103090.0,0.25616523]
[1763031865348,0.5910437,103100.0,103090.0,0.23616523]
[1763031865576,0.5910437,103100.0,103090.0,0.06216]
[1763031865875,0.5910437,103100.0,103090.0,0.04216]
[1763031867272,0.5910437,103100.0,103090.0,0.06216]
[1763031867653,0.5910437,103100.0,103090.0,0.04216]
[1763031867840,0.5910437,103100.0,103080.0,0.21416379]
[1763031867841,0.19400523,103090.0,103080.0,0.00013974]
[1763031868030,0.53278812,103090.0,103080.0,0.00013974]
[1763031868232,0.53278812,103090.0,103080.0,0.04225974]
[1763031868233,0.83108101,103090.0,103080.0,0.04225974]
[1763031869113,0.83208101,103090.0,103080.0,0.04225974]
[1763031869679,0.53378812,103090.0,103080.0,0.04225974]
[1763031869895,0.6301876,103090.0,103080.0,0.04225974]
[1763031870097,0.92848049,103090.0,103080.0,0.00113974]
[1763031870259,0.92848049,103090.0,103080.0,0.04325974]
[1763031870670,0.92848049,103090.0,103080.0,0.04225974]
[1763031870871,0.92948049,103090.0,103080.0,0.06225974]
[1763031871709,0.77728812,103090.0,103080.0,0.06225974]
[1763031872542,0.77728812,103090.0,103080.0,0.04225974]
[1763031872710,0.77728812,103090.0,103080.0,0.25628379]
[1763031873350,0.80640934,103090.0,103080.0,0.25628379]
[1763031874455,0.80640934,103090.0,103080.0,0.04225974]
[1763031874609,0.80640934,103090.0,103080.0,0.06225974]
[1763031874813,0.80640934,103090.0,103080.0,0.23628379]
[1763031876436,0.80640934,103090.0,103080.0,0.25628379]
[1763031876633,0.80640934,103090.0,103080.0,0.23628379]
[1763031876898,0.80640934,103090.0,103080.0,0.25628379]
[1763031880182,0.80640934,103090.0,103080.0,0.23628379]
[1763031880394,0.80640934,103090.0,103080.0,0.25628379]
[1763031880702,0.80640934,103090.0,103080.0,0.23628379]
[1763031880911,0.95559219,103090.0,103080.0,0.23628379]
[1763031881025,0.76158696,103090.0,103080.0,0.25628379]
[1763031881229,0.53784909,103090.0,103080.0,0.25628379]
[1763031881632,0.31411122,103090.0,103080.0,0.25628379]
[1763031881838,0.31411122,103090.0,103080.0,0.23628379]
[1763031882076,0.04249,103090.0,103080.0,0.70375953]
[1763031882280,0.04249,103090.0,103080.0,0.25628379]
[1763031882478,0.04249,103090.0,103080.0,0.48002166]
[1763031882898,0.04149,103090.0,103080.0,0.48002166]
[1763031883990,0.04049,103090.0,103080.0,0.48002166]
[1763031885683,0.04049,103090.0,103080.0,0.70375953]
[1763031886067,0.04049,103090.0,103080.0,0.25628379]
[1763031886249,0.04049,103090.0,103080.0,0.48002166]
[1763031889260,0.04049,103090.0,103080.0,0.70375953]
[1763031889463,0.04049,103090.0,103080.0,0.68375953]
[1763031889709,0.04049,103090.0,103080.0,0.70375953]
[1763031891577,0.04049,103090.0,103080.0,0.75196392]
[1763031894060,0.01663,103090.0,103080.0,0.80456392]
[1763031894272,0.03489,103100.0,103090.0,0.19400523]
[1763031894491,0.03489,103100.0,103090.0,0.4377431]
[1763031894693,0.04989,103100.0,103090.0,0.4377431]
[1763031895376,0.02507,103100.0,103090.0,0.4377431]
[1763031895608,0.02507,103100.0,103090.0,0.4496231]
[1763031896097,0.02507,103100.0,103090.0,0.4657431]
[1763031896098,0.01107,103100.0,103090.0,0.4657431]
[1763031896311,0.01107,103100.0,103090.0,0.4903431]
[1763031896548,0.01107,103100.0,103090.0,0.4657431]
[1763031896855,0.02607,103100.0,103090.0,0.4496231]
[1763031897051,0.02607,103100.0,103090.0,0.4903431]
[1763031897260,0.01107,103100.0,103090.0,0.4903431]
[1763031897465,0.001,103100.0,103090.0,0.4903431]
[1763031898127,0.01107,103100.0,103090.0,0.4903431]
[1763031898556,0.01107,103100.0,103090.0,0.26660523]
[1763031898766,0.05089,103100.0,103090.0,0.21400523]
[1763031898979,0.02607,103100.0,103090.0,0.24200523]
[1763031899204,0.02707,103100.0,103090.0,0.24200523]
[1763031899421,0.02707,103100.0,103090.0,0.26660523]
[1763031899631,0.02707,103100.0,103090.0,0.4903431]
[1763031900782,0.01207,103100.0,103090.0,0.4903431]
[1763031901853,0.02775,103100.0,103090.0,0.4657431]
[1763031902082,0.01207,103100.0,103090.0,0.4886131]
[1763031903472,0.01207,103100.0,103090.0,0.24200523]
[1763031903674,0.49859574,103100.0,103090.0,0.19400523]
[1763031903878,0.96452442,103100.0,103090.0,0.25608523]
[1763031904083,0.74078655,103100.0,103090.0,0.25608523]
[1763031904292,0.19400523,103090.0,103080.0,0.02013974]
[1763031904512,0.25426081,103100.0,103090.0,3.08854903]
[1763031904715,0.9265163,103100.0,103090.0,3.06854903]
[1763031904917,0.91550972,103100.0,103090.0,3.11062903]
[1763031905094,0.94640972,103100.0,103090.0,3.11062903]
[1763031905323,0.97452944,103100.0,103090.0,3.11062903]
[1763031905761,2.09321879,103100.0,103090.0,3.11062903]
[1763031905974,1.42200518,103100.0,103090.0,3.11062903]
[1763031906384,1.42300518,103100.0,103090.0,3.11062903]
[1763031907063,0.10750567,103100.0,103090.0,3.35225426]
[1763031907268,0.05020439,103100.0,103090.0,3.37500426]
[1763031907883,0.002,103100.0,103090.0,3.37500426]
[1763031908393,0.002,103100.0,103090.0,3.59874213]
[1763031909256,0.002,103100.0,103090.0,3.82248]
[1763031911420,0.002,103100.0,103090.0,3.37500426]
[1763031911621,0.002,103100.0,103090.0,3.82248]
[1763031916333,0.002,103100.0,103090.0,4.02621787]
[1763031916907,0.002,103100.0,103090.0,3.82248]
[1763031919522,0.002,103100.0,103090.0,4.04621787]
[1763031919951,0.002,103100.0,103090.0,3.82248]
[1763031920148,0.002,103100.0,103090.0,4.04621787]
[1763031920311,0.002,103100.0,103090.0,3.82248]
[1763031921809,0.002,103100.0,103090.0,4.08963661]
[1763031923039,0.001,103100.0,103090.0,4.08963661]
[1763031923240,0.25295802,103120.0,103110.0,0.1939676]
[1763031923452,0.24288802,103120.0,103110.0,0.2836676]
[1763031923679,0.24288802,103120.0,103110.0,0.3064176]
[1763031924474,0.24388802,103120.0,103110.0,0.53015547]
[1763031924683,0.43783681,103120.0,103110.0,0.53015547]
[1763031924883,0.24488802,103120.0,103110.0,0.3064176]
[1763031925337,0.24488802,103120.0,103110.0,0.53015547]
[1763031927412,0.43883681,103120.0,103110.0,0.53015547]
[1763031928401,0.24488802,103120.0,103110.0,0.53015547]
[1763031928829,0.43883681,103120.0,103110.0,0.53015547]
[1763031929264,0.24488802,103120.0,103110.0,0.53015547]
[1763031929468,0.43883681,103120.0,103110.0,0.53015547]
[1763031929699,0.24488802,103120.0,103110.0,0.53015547]
[1763031929897,0.43883681,103120.0,103110.0,0.53015547]
[1763031930529,0.24488802,103120.0,103110.0,0.53015547]
[1763031931512,0.43883681,103120.0,103110.0,0.3064176]
[1763031931655,0.43883681,103120.0,103110.0,0.53015547]
[1763031931856,0.43883681,103120.0,103110.0,0.3064176]
[1763031932528,0.24488802,103120.0,103110.0,0.3064176]
[1763031932726,0.43883681,103120.0,103110.0,0.53015547]
[1763031933130,0.24488802,103120.0,103110.0,0.53015547]
[1763031933798,0.43883681,103120.0,103110.0,0.53015547]
[1763031934659,0.45428681,103120.0,103110.0,0.2836676]
[1763031935499,0.21178681,103120.0,103110.0,0.2836676]
[1763031935713,0.21178681,103120.0,103110.0,0.97807121]
[1763031935714,0.00238802,103120.0,103110.0,0.97807121]
[1763031936373,0.00138802,103120.0,103110.0,0.97807121]
[1763031936941,0.00038802,103120.0,103110.0,0.97807121]
[1763031939602,0.00038802,103120.0,103110.0,1.00747565]
[1763031940001,0.00038802,103120.0,103110.0,1.67868926]
[1763031940181,0.00038802,103120.0,103110.0,1.00747565]
[1763031940936,0.00038802,103120.0,103110.0,0.63421967]
[1763031941392,0.00038802,103120.0,103110.0,0.96412594]
[1763031941538,0.00038802,103120.0,103110.0,0.96512594]
[1763031941732,0.00038802,103120.0,103110.0,0.96612594]
[1763031944233,0.00038802,103120.0,103110.0,0.63621967]
[1763031946015,0.00038802,103120.0,103110.0,0.9341773]
[1763031947997,0.00038802,103120.0,103110.0,0.63621967]
[1763031948792,0.00038802,103120.0,103110.0,0.58681523]
[1763031948793,0.01045802,103120.0,103110.0,0.58681523]
[1763031948964,0.01045802,103120.0,103110.0,0.60681523]
[1763031949585,0.00038802,103120.0,103110.0,0.60681523]
[1763031958954,0.00038802,103120.0,103110.0,0.60677523]
[1763031959346,0.00038802,103120.0,103110.0,0.56473523]
[1763031959529,0.00038802,103120.0,103110.0,0.2467776]
[1763031959778,0.00038802,103120.0,103110.0,0.60677523]
[1763031961328,0.31357565,103120.0,103110.0,0.2235876]
[1763031961526,0.01561802,103120.0,103110.0,0.2846276]
[1763031961733,0.00038802,103120.0,103110.0,0.2666876]
[1763031961940,0.01561802,103120.0,103110.0,0.2380076]
[1763031962152,0.01561802,103120.0,103110.0,0.2580076]
[1763031962512,0.01561802,103120.0,103110.0,0.2704776]